{"text_format":"1","workbook":"xlsx","n_sheets":5,"sheets":["Request for Cash","Consolidated Support","CAPER FY25","CAPER FY25 Cum","CAPERList"],"not_rendered":{"charts":0,"images":2,"macros":1,"external_links":0,"defined_names":7,"comments":2,"pivot_tables":0},"unopened":[],"bounds":{"document_bytes":16777216,"sheet_cells":100000,"rows_first":2000,"rows_last":500,"rows_between":2000,"halvings":0,"cell_chars":16384,"cell_head_chars":4096},"cells_cut":0,"cells_raw":0,"read":"whole","date_system":"1900"}

{"sheet":"Request for Cash","index":0,"n_rows":77,"n_cols":12,"rows_kept":77,"cut":false,"hidden":false,"merged":[[30,1,30,12],[11,1,11,12],[46,1,46,12],[47,3,47,5],[48,3,48,5],[47,1,47,2],[48,1,48,2],[32,1,34,12],[29,1,29,12],[28,1,28,12],[49,1,49,2],[50,3,50,5],[50,1,50,2],[51,3,51,5],[51,1,51,2],[52,3,52,5],[35,1,35,12],[56,1,56,3],[56,11,56,12],[36,1,38,12],[41,11,41,12],[42,8,42,9],[42,11,42,12],[41,8,41,9],[41,3,41,4],[43,8,43,9],[54,1,54,12],[55,1,55,3],[55,11,55,12],[43,3,43,5],[49,3,49,5],[3,3,3,5],[10,9,10,12],[5,3,5,5],[6,3,6,5],[6,7,6,8],[7,9,7,12],[8,9,8,12],[9,9,9,12],[4,9,4,12],[5,9,5,12],[6,9,6,12],[10,3,10,5],[4,6,4,8],[9,3,9,5],[7,3,7,5],[8,3,8,5]]}
[null,"Mississippi Home Corporation"]
[null,"Request for Cash"]
[]
[null,"Program:",null,"Emergency Solutions Grant Program"]
[null,"Section A:  General Information",null,null,null,null,"Section B:  Project Information",null,null,"Section C:  RFC Information"]
[null,"Recipient",null,null,null,null,"Grant No.","Contract No.",null,"Project No."]
[null,"Mailing Address",null,{"$f":"LOOKUP(+$D$6,E63:E77,F63:F77)","v":{"$error":"#N/A"}},null,null,{"$f":"LOOKUP(+$D$6,E63:E77,J63:J77)","v":{"$error":"#N/A"}},{"$f":"LOOKUP(+$D$6,E63:E77,L63:L77)","v":{"$error":"#N/A"}}]
[null,"Street Address",null,{"$f":"LOOKUP(+$D$6,E63:E77,G63:G77)","v":{"$error":"#N/A"}},null,null,"Services Rendered",null,null,"Request No."]
[null,"City, State Zip",null,{"$f":"LOOKUP(+$D$6,E63:E77,H63:H77)","v":{"$error":"#N/A"}},null,null,"From",null,"To"]
[null,"Telephone No.",null,null,null,null,null,"Thru",null,"MHC Staff Initials"]
[]
[null,"Section D:  Request Per Activity"]
[null,null,null,null,"Activity Description"," Budget Amount","Total Prior Request to Date","This Request","Remaining Balance","# of Individuals Served",null,"Activity Numbers"]
[null,1,null,null,{"$f":"+'Consolidated Support'!B46","v":"Shelter"},{"$f":"+'Consolidated Support'!M46","v":0},{"$f":"+'Consolidated Support'!N8","v":0},{"$f":"+'Consolidated Support'!J46","v":0},{"$f":"+F14-G14-H14","v":0},null,null,16411]
[null,2,null,null,"Street Outreach",{"$f":"+'Consolidated Support'!M59","v":0},{"$f":"+'Consolidated Support'!N48","v":0},{"$f":"+'Consolidated Support'!J59","v":0},0,null,null,16406]
[null,3,null,null,"Rapid Rehousing",{"$f":"+'Consolidated Support'!M83","v":0},{"$f":"+'Consolidated Support'!N61","v":0},{"$f":"+'Consolidated Support'!J83","v":0},0,null,null,16407]
[null,4,null,null,"Homeless Prevention",{"$f":"'Consolidated Support'!M107","v":0},{"$f":"+'Consolidated Support'!N85","v":0},{"$f":"'Consolidated Support'!J107","v":0},0,null,null,16408]
[null,5,null,null,"HMIS",{"$f":"'Consolidated Support'!M120","v":0},{"$f":"+'Consolidated Support'!N109","v":0},{"$f":"'Consolidated Support'!J120","v":0},{"$f":"+F18-G18-H18","v":0},null,null,16409]
[null,16,null,null,null,null,null,null,{"$f":"+F20-G20-H20","v":0}]
[null,17,null,null,null,null,null,null,0]
[null,18,null,null,null,null,null,null,0]
[null,20]
[null,20,null,null,null,null,null,null,{"$f":"+F24-G24-H24","v":0}]
[null,null,null,null,"Total:",{"$f":"F14+F15+F16+F17+F18","v":0},{"$f":"G14+G15+G16+G17+G18","v":0},{"$f":"H14+H15+H16+H17+H18","v":0},{"$f":"I14+I15+I16+I17+I18","v":0},{"$f":"SUM(J14:J18)","v":0}]
[]
[null,null,null,null,"Total Match:",{"$f":"'Consolidated Support'!M122","v":0},{"$f":"'Consolidated Support'!N122","v":0},{"$f":"'Consolidated Support'!K128","v":0},{"$f":"+F26-G26-H26","v":0}]
[]
[]
[null,"Section E: Required Accomplishment Narrative "]
[]
[null,"Section F:  Certification"]
[]
[null,"   I Hereby Certify That (a) the services covered by this request have not been received from the Federal Government/State Government or expended for such services under any other contract agreement or grant; (b) the amount requested will be expended for allowable costs / expenditures under the terms of the contract agreement or grant; (c) the amount requested herein does not exceed the total funds obligated by contract; and (d) the funds are requested for only immediate disbursements.  "]
[]
[]
[null," By signing this report, I certify to the best of my knowledge and belief that the report is true, complete, and accurate, and the expenditures, disbursements and cash receipts are for the purposes and objectives set forth in the terms and conditions of the Federal award.  I am aware that any false, fictitious, or fraudulent information, or the omission of any material fact, may subject me to criminal, civil or administrative penalties for fraud, false statements, false claims or otherwise (U.S. Code Title 18, Section 1001 and Title 31, Sections 3729-3730 and 3801-3812)."]
[null,"   I Hereby Certify That the goods sold and/or services rendered have been delivered and/or performed in good order within the time listed above and are in compliance with all statutory requirements and regulations.  I certify that this request does not include any advances or funds for future obligations. "]
[]
[]
[null,"Is this your final request for cash on this contract?"]
[]
[]
[null,null,null,"           Signature of Authorized Official ",null,null,"Date Signed",null," Prepared By",null,null,"Date Prepared"]
[]
[null,null,null,"Typed Name and Title of Authorized Official",null,null,null,null,"Preparer's Telephone No."]
[]
[null,"MHC USE ONLY"]
[null,"Processed By:",null,null,null,null,null,"Date:"]
[null,"1st Level Approval:",null,"Signature, Authorized MHC Representative",null,null,null,"Date:"]
[null,"2nd Level Approval: ",null,"Signature, Authorized MHC Representative",null,null,null,"Date:"]
[null,"3rd Level Approval:",null,"Signature, Authorized MHC Representative",null,null,null,"Date:"]
[null,"IDIS Approved By:",null,"Signature, Authorized MHC Representative",null,null,null,"Date:"]
[null,null,null,"Signature, Authorized MHC Representative"]
[]
[null,"ACCOUNTING USE ONLY"]
[null,"IDIS Voucher Number",null,null,"Vendor Number","Issue/Series","Fund/Sub-Fund","Serviceer"]
[]
[]
[]
[]
[]
[null,null,null,null,"Applicant","Mailing Address","Street Address","City","Phone #","Grant No.",null,"Contract No."]
[null,null,null,null,"Aids Services Coalition","P. O. Box 169","121 College St.","Hattiesburg, MS  39403",6014504286,2025,null,"2025-ESG-ASC-25"]
[null,null,null,null,"Back Bay Mission",0,"1012 Division Street","Biloxi, MS 39530","(228) 432-0301",2025,null,"2025-ESG-BBM-25"]
[null,null,null,null,"Center for Violence Prevention","PO Box 6279","409 Roberts St. ","Pearl, MS 39288 ","(601) 932-4208",2025,null,"2025-ESG-CVP-245"]
[null,null,null,null,"Community Care Network ",0,"7400 Fountainblue Road","Ocean Springs, MS 39564",2282202987,2025,null,"2025-ESG-CCN-25"]
[null,null,null,null,"Community Development Inc. ","P O Box 689","411 Oak Street","Richton, MS 39476",6017886704,2025,null,"2025-ESG-CDI-25"]
[null,null,null,null,"Crossroads Ministries ",0,"2353 Highway 51","Ridgeland, MS 39158",null,2025,null,"2025-ESG-Crossroads-25"]
[null,null,null,null,"Grace House Inc","P O Box 68924","236 Millsaps Avenue","Jackson, MS 39286",6013531038,2025,null,"2025-ESG-GHI-25"]
[null,null,null,null,"Gulf Coast Center for Non-Violence ","P O Box 333","213 Porter Ave","Biloxi, Mississippi 39533",2284363809,2025,null,"2025-ESG-GCCNV-25"]
[null,null,null,null,"Hancock Resource Center ",0,"454 Highway 90, Suite B","Waveland, MS 39576",2284638887,2025,null,"2025-ESG-HRC-25"]
[null,null,null,null,"Multi-County Community Service Agency ","P O Box 905","2900 St Paul St.","Meridian, MS 39302",6014834838,2025,null,"2025-ESG-MCCSA-25"]
[null,null,null,null,"Region VII Mental Health/Intellectual Disabilities Commission dba Community Counseling Services","P O Box 2590","222 Mary Holmes Dr.","Columbus, MS 39704",6624294333,2025,null,"2025-ESG-CCS-25"]
[null,null,null,null,"S. A. F. E. ","P O Box 985","105 Clark Place","Tupelo, MS 38804",6628419105,2025,null,"2025-ESG-SAFE-25"]
[null,null,null,null,"Open Door Homelesss Coalition",0,"11975 Seaway Rd. Suite B240","Gulfport MS. 39503","(228) 205-7047",2025,null,"2025-ESG-ODHC-25"]
[null,null,null,null,"Stewpot Community Services",0,"1100 W. Capitol Street","Jackson, MS ",6013532759,2025,null,"2025-ESG-SCS-25"]
[null,null,null,null,"WWISCAA, Inc.",0,"1538 Old Leland Rd.","Greenville. MS. 38701","(662) 378-5857",2025,null,"2025-ESG-WWISCAA-25"]

{"sheet":"Consolidated Support","index":1,"n_rows":148,"n_cols":15,"rows_kept":148,"cut":false,"hidden":false,"merged":[[0,0,0,14],[1,0,1,14],[129,1,129,4],[147,1,147,4],[146,1,146,4],[146,10,146,12],[136,0,138,14],[140,0,141,14],[131,5,131,8],[134,8,134,9],[133,8,133,9],[144,10,144,12],[145,10,145,12],[142,0,142,14]]}
["Mississippi Home Corporation"]
[" Consolidated Support Sheet"]
[null,"Program:",null,{"$f":"+'Request for Cash'!D4","v":"Emergency Solutions Grant Program"}]
[null,"Recipient",null,{"$f":"+'Request for Cash'!D6","v":0},null,null,null,null,null,null,"Contract Number:",null,{"$f":"+'Request for Cash'!H7","v":{"$error":"#N/A"}}]
[null,"Request for Cash Number:",null,{"$f":"+'Request for Cash'!J9","v":0},null,null,null,null,null,null,"Total Amount Requested:",null,{"$f":"+'Request for Cash'!H24","v":0}]
[]
["AWARDS ID","Vendor","Line Items","CAPER Category","Invoice Date","Invoice # / Check #","Date Expense Started","Date Expense Ended","Total Invoice","Amount of This Request","Appendix","This applicant is a first time applicant Y/N","Amount Budgeted","Amount Requested to Date","Balance"]
[{"$f":"+'Request for Cash'!L14","v":16411},"Shelter",null,null,null,null,null,null,null,null,null,null,0,0,{"$f":"+M8-N8","v":0}]
[null,null,null,null,null,null,null,null,null,null,null,null,null,{"$f":"+J9","v":0},{"$f":"+M9-N9","v":0}]
[null,null,null,null,null,null,null,null,null,null,null,null,null,{"$f":"+J10","v":0},0]
[null,null,null,null,null,null,null,null,null,null,null,null,null,0,0]
[null,null,null,null,null,null,null,null,null,null,null,null,null,0,0]
[null,null,null,null,null,null,null,null,null,null,null,null,null,0,0]
[null,null,null,null,null,null,null,null,null,null,null,null,null,0,0]
[null,null,null,null,null,null,null,null,null,null,null,null,null,0,0]
[null,null,null,null,null,null,null,null,null,null,null,null,null,0,0]
[null,null,null,null,null,null,null,null,null,null,null,null,null,0,0]
[null,null,null,null,null,null,null,null,null,null,null,null,null,0,0]
[null,null,null,null,null,null,null,null,null,null,null,null,null,0,0]
[null,null,null,null,null,null,null,null,null,null,null,null,null,0,0]
[null,null,null,null,null,null,null,null,null,null,null,null,null,0,0]
[null,null,null,null,null,null,null,null,null,null,null,null,null,0,0]
[null,null,null,null,null,null,null,null,null,null,null,null,null,0,0]
[null,null,null,null,null,null,null,null,null,null,null,null,null,0,0]
[null,null,null,null,null,null,null,null,null,null,null,null,null,0,0]
[null,null,null,null,null,null,null,null,null,null,null,null,null,0,0]
[null,null,null,null,null,null,null,null,null,null,null,null,null,0,0]
[null,null,null,null,null,null,null,null,null,null,null,null,null,0,0]
[null,null,null,null,null,null,null,null,null,null,null,null,null,0,0]
[null,null,null,null,null,null,null,null,null,null,null,null,null,0,0]
[null,null,null,null,null,null,null,null,null,null,null,null,null,0,0]
[null,null,null,null,null,null,null,null,null,null,null,null,null,0,0]
[null,null,null,null,null,null,null,null,null,null,null,null,null,0,0]
[null,null,null,null,null,null,null,null,null,null,null,null,null,0,0]
[null,null,null,null,null,null,null,null,null,null,null,null,null,0,0]
[null,null,null,null,null,null,null,null,null,null,null,null,null,0,0]
[null,null,null,null,null,null,null,null,null,null,null,null,null,0,0]
[null,null,null,null,null,null,null,null,null,null,null,null,null,0,0]
[null,null,null,null,null,null,null,null,null,null,null,null,null,0,0]
[null,null,null,null,null,null,null,null,null,null,null,null,null,0,0]
[null,null,null,null,null,null,null,null,null,null,null,null,null,0,0]
[null,null,null,null,null,null,null,null,null,null,null,null,null,0,0]
[null,null,null,null,null,null,null,null,null,null,null,null,null,0,0]
[null,null,null,null,null,null,null,null,null,null,null,null,null,0,0]
[null,"Indirect Costs Shelter",null,"ESES- Indirect Cost",null,null,null,null,null,null,null,null,null,0,0]
[null,{"$f":"+B8","v":"Shelter"},null,null,null,null,null,null,{"$f":"SUM(I8:I45)","v":0},{"$f":"SUM(J8:J45)","v":0},null,null,0,0,0]
[]
[{"$f":"+'Request for Cash'!L15","v":16406},"Street Outreach",null,null,null,null,null,null,null,null,null,null,0,0,{"$f":"+M48-N48","v":0}]
[null,null,null,null,null,null,null,null,null,null,null,null,null,{"$f":"+J49","v":0},0]
[null,null,null,null,null,null,null,null,null,null,null,null,null,0,0]
[null,null,null,null,null,null,null,null,null,null,null,null,null,0,0]
[null,null,null,null,null,null,null,null,null,null,null,null,null,0,0]
[null,null,null,null,null,null,null,null,null,null,null,null,null,0,0]
[null,null,null,null,null,null,null,null,null,null,null,null,null,0,0]
[null,null,null,null,null,null,null,null,null,null,null,null,null,0,0]
[null,null,null,null,null,null,null,null,null,null,null,null,null,0,0]
[null,null,null,null,null,null,null,null,null,null,null,null,null,0,0]
[null,"Indirect Costs SO",null,"SOES- Indirect Cost",null,null,null,null,null,null,null,null,null,0,0]
[null,{"$f":"+B48","v":"Street Outreach"},null,null,null,null,null,null,{"$f":"SUM(I48:I58)","v":0},{"$f":"SUM(J48:J58)","v":0},null,null,0,0,0]
[]
[{"$f":"+'Request for Cash'!L16","v":16407},"Rapid Re-Housing",null,null,null,null,null,null,null,null,null,null,0,0,{"$f":"+M61-N61","v":0}]
[null,null,null,null,null,null,null,null,null,null,null,null,null,{"$f":"+J62","v":0},0]
[null,null,null,null,null,null,null,null,null,null,null,null,null,0,0]
[null,null,null,null,null,null,null,null,null,null,null,null,null,0,0]
[null,null,null,null,null,null,null,null,null,null,null,null,null,0,0]
[null,null,null,null,null,null,null,null,null,null,null,null,null,0,0]
[null,null,null,null,null,null,null,null,null,null,null,null,null,0,0]
[null,null,null,null,null,null,null,null,null,null,null,null,null,0,0]
[null,null,null,null,null,null,null,null,null,null,null,null,null,0,0]
[null,null,null,null,null,null,null,null,null,null,null,null,null,0,0]
[null,null,null,null,null,null,null,null,null,null,null,null,null,0,0]
[null,null,null,null,null,null,null,null,null,null,null,null,null,0,0]
[null,null,null,null,null,null,null,null,null,null,null,null,null,0,0]
[null,null,null,null,null,null,null,null,null,null,null,null,null,0,0]
[null,null,null,null,null,null,null,null,null,null,null,null,null,0,0]
[null,null,null,null,null,null,null,null,null,null,null,null,null,0,0]
[null,null,null,null,null,null,null,null,null,null,null,null,null,0,0]
[null,null,null,null,null,null,null,null,null,null,null,null,null,0,0]
[null,null,null,null,null,null,null,null,null,null,null,null,null,0,0]
[null,null,null,null,null,null,null,null,null,null,null,null,null,0,0]
[null,null,null,null,null,null,null,null,null,null,null,null,null,0,0]
[null,"Indirect Costs RRH",null,"RRSS- Indirect Cost",null,null,null,null,null,null,null,null,null,0,0]
[null,{"$f":"B61","v":"Rapid Re-Housing"},null,null,null,null,null,null,{"$f":"SUM(I61:I82)","v":0},{"$f":"SUM(J61:J82)","v":0},null,null,0,0,0]
[]
[{"$f":"+'Request for Cash'!L17","v":16408},"Homeless Prevention",null,null,null,null,null,null,null,null,null,null,0,0,{"$f":"+M85-N85","v":0}]
[null,null,null,null,null,null,null,null,null,null,null,null,null,{"$f":"+J86","v":0},0]
[null,null,null,null,null,null,null,null,null,null,null,null,null,0,0]
[null,null,null,null,null,null,null,null,null,null,null,null,null,0,0]
[null,null,null,null,null,null,null,null,null,null,null,null,null,0,0]
[null,null,null,null,null,null,null,null,null,null,null,null,null,0,0]
[null,null,null,null,null,null,null,null,null,null,null,null,null,0,0]
[null,null,null,null,null,null,null,null,null,null,null,null,null,0,0]
[null,null,null,null,null,null,null,null,null,null,null,null,null,0,0]
[null,null,null,null,null,null,null,null,null,null,null,null,null,0,0]
[null,null,null,null,null,null,null,null,null,null,null,null,null,0,0]
[null,null,null,null,null,null,null,null,null,null,null,null,null,0,0]
[null,null,null,null,null,null,null,null,null,null,null,null,null,0,0]
[null,null,null,null,null,null,null,null,null,null,null,null,null,0,0]
[null,null,null,null,null,null,null,null,null,null,null,null,null,0,0]
[null,null,null,null,null,null,null,null,null,null,null,null,null,0,0]
[null,null,null,null,null,null,null,null,null,null,null,null,null,0,0]
[null,null,null,null,null,null,null,null,null,null,null,null,null,0,0]
[null,null,null,null,null,null,null,null,null,null,null,null,null,0,0]
[null,null,null,null,null,null,null,null,null,null,null,null,null,0,0]
[null,null,null,null,null,null,null,null,null,null,null,null,null,0,0]
[null,"Indirect Costs HP",null,"HPSS- Indirect Cost ",null,null,null,null,null,null,null,null,null,0,0]
[null,{"$f":"+B85","v":"Homeless Prevention"},null,null,null,null,null,null,{"$f":"SUM(I85:I106)","v":0},{"$f":"SUM(J85:J106)","v":0},null,null,0,0,0]
[]
[{"$f":"+'Request for Cash'!L18","v":16409},"HMIS",null,null,null,null,null,null,null,null,null,null,null,0,{"$f":"+M109-N109","v":0}]
[null,null,null,null,null,null,null,null,null,null,null,null,null,{"$f":"+J110","v":0},0]
[null,null,null,null,null,null,null,null,null,null,null,null,null,0,0]
[null,null,null,null,null,null,null,null,null,null,null,null,null,0,0]
[null,null,null,null,null,null,null,null,null,null,null,null,null,0,0]
[null,null,null,null,null,null,null,null,null,null,null,null,null,0,0]
[null,null,null,null,null,null,null,null,null,null,null,null,null,0,0]
[null,null,null,null,null,null,null,null,null,null,null,null,null,0,0]
[null,null,null,null,null,null,null,null,null,null,null,null,null,0,0]
[null,null,null,null,null,null,null,null,null,null,null,null,null,0,0]
[null,"Indirect Costs HMIS",null,"HMIS-Indirect Cost",null,null,null,null,null,null,null,null,null,0,0]
[null,{"$f":"+B109","v":"HMIS"},null,null,null,null,null,null,{"$f":"SUM(I109:I119)","v":0},{"$f":"SUM(J109:J119)","v":0},null,null,0,{"$f":"SUM(N109:N119)","v":0},{"$f":"SUM(O109:O119)","v":0}]
[]
[null,"MATCH",null,null,null,null,null,null,null,null,"MATCH Value $",null,null,0,{"$f":"+M122-N122","v":0}]
[null,null,null,null,null,null,null,null,null,null,null,null,null,{"$f":"+J123","v":0},{"$f":"+M123-N123","v":0}]
[null,null,null,null,null,null,null,null,null,null,null,null,null,0,{"$f":"+M124-N124","v":0}]
[null,null,null,null,null,null,null,null,null,null,null,null,null,0,0]
[null,null,null,null,null,null,null,null,null,null,null,null,null,0,{"$f":"+M126-N126","v":0}]
[null,null,null,null,null,null,null,null,null,null,null,null,null,0,0]
[null,{"$f":"+B122","v":"MATCH"},null,null,null,null,null,null,null,null,{"$f":"SUM(K123:K127)","v":0},null,null,{"$f":"SUM(N122:N127)","v":0},{"$f":"SUM(O122:O127)","v":0}]
[]
[null,"GRAND TOTAL",null,null,null,null,null,null,{"$f":"I59+I120+I107+I83+I46","v":0},{"$f":"J59+J120+J107+J83+J46","v":0},{"$f":"+K128","v":0},null,{"$f":"M59+M120+M107+M83+M46","v":0},{"$f":"N59+N120+N107+N83+N46","v":0},{"$f":"O59+O120+O107+O83+O46","v":0}]
[]
[null,"Services Rendered - Beginning:",null,null,null,{"$f":"'Request for Cash'!G10","v":"00:00:00"},null,null,null,"Thru",{"$f":"+'Request for Cash'!I10","v":"00:00:00"}]
[]
[null,null,null,null,{"$f":"+N130","v":0},"Plus (+)",null,null,{"$f":"+K130","v":0},null,"Equals (=)",null,{"$f":"+E134+I134","v":0}]
[null,"Cumulative:  ",null,null,"Program Expenditures ",null,null,null,"Matching Expenditures",null,null,null,"Total Expenditures"]
[]
["   I Hereby Certify That (a) the services covered by this request have not been received from the Federal / State Government or expended for such services under any other contract agreement or grant; (b) the amount requested will be expended for allowable costs / expenditures under the terms of the contract agreement or grant; (c) the amount requested herein does not exceed the total funds obligated by contract; and (d) the funds are requested for only immediate disbursements."]
[]
[]
[]
["   I Hereby Certify That the goods sold and/or services rendered have been delivered and/or performed in good order within the time listed above and are in compliance with all statutory requirements and regulations.  I certify that this request does not include any advances or funds for future obligations."]
[]
[" By signing this report, I certify to the best of my knowledge and belief that the report is true, complete, and accurate, and the expenditures, disbursements and cash receipts are for the purposes and objectives set forth in the terms and conditions of the Federal award.  I am aware that any false, fictitious, or fraudulent information, or the omission of any material fact, may subject me to criminal, civil or administrative penalties for fraud, false statements, false claims or otherwise (U.S. Code Title 18, Section 1001 and Title 31, Sections 3729-3730 and 3801-3812)."]
[]
[null,null,null,null,null,null,null,null,{"$f":"+'Request for Cash'!L42","v":"00:00:00"},null,{"$f":"+'Request for Cash'!I42","v":0}]
[null,"Signature of Authorized Official ",null,null,null,null,null,null,"Date Signed",null," Prepared By"]
[null,{"$f":"+'Request for Cash'!D44","v":0},null,null,null," ",null,null,null,null,{"$f":"+'Request for Cash'!I44","v":0}]
[null,"          Typed Name and Title of Authorized Official",null,null,null,null,null,null,null,null,"Preparer's Telephone No."]

{"sheet":"CAPER FY25","index":2,"n_rows":43,"n_cols":3,"rows_kept":43,"cut":false,"hidden":false,"merged":[[5,1,5,2],[0,0,0,2],[1,1,1,2],[2,1,2,2],[3,1,3,2],[4,1,4,2],[24,0,24,2],[7,0,7,2],[12,0,12,2],[18,0,18,2],[31,0,31,2]]}
[" Financial Summary Report (CAPER)"]
["Sub recipient",{"$f":"+'Request for Cash'!D6","v":0}]
["Contract Number",{"$f":"+'Request for Cash'!H7","v":{"$error":"#N/A"}}]
["Request for Cash Number",{"$f":"'Request for Cash'!J9","v":0}]
["Reporting Period From",{"$f":"'Request for Cash'!G10","v":"00:00:00"}]
["                            To",{"$f":"'Request for Cash'!I10","v":"00:00:00"}]
[null,null,"Emergency Solutions Grant Expenditures by Categories "]
["ESG Expenditures for Emergency Shelter"]
["Essential Services",null,{"$f":"SUMIF('Consolidated Support'!D9:D45,\"ESES*\",'Consolidated Support'!N9:N45)","v":0}]
["Operations",null,{"$f":"SUMIF('Consolidated Support'!D9:D45,\"ESOP*\",'Consolidated Support'!N9:N45)","v":0}]
["Subtotal",null,{"$f":"SUM(C9:C10)","v":0}]
[]
["ESG Expenditures for Rapid Rehousing"]
["Expenditures for Rental Assistance",null,{"$f":"SUMIF('Consolidated Support'!D62:D82,\"RRRA*\",'Consolidated Support'!N62:N82)","v":0}]
["Expenditures for Housing Relocation and Stabilization Services - Financial Assistance",null,{"$f":"SUMIF('Consolidated Support'!D62:D82,\"RRFA*\",'Consolidated Support'!N62:N82)","v":0}]
["Expenditures for Housing Relocation and Stabilization Services - Services",null,{"$f":"SUMIF('Consolidated Support'!D62:D82,\"RRSS*\",'Consolidated Support'!N62:N82)","v":0}]
["Subtotal Rapid Rehousing",null,{"$f":"SUM(C14:C16)","v":0}]
[]
["ESG Expenditures for Homelessness Prevention"]
["Expenditures for Rental Assistance",null,{"$f":"SUMIF('Consolidated Support'!D86:D106,\"HPRA*\",'Consolidated Support'!N86:N106)","v":0}]
["Expenditures for Housing Relocation and Stabilization Services - Financial Assistance",null,{"$f":"SUMIF('Consolidated Support'!D86:D106,\"HPFA*\",'Consolidated Support'!N86:N106)","v":0}]
["Expenditures for Housing Relocation and Stabilization Services - Services",null,{"$f":"SUMIF('Consolidated Support'!D86:D106,\"HPSS*\",'Consolidated Support'!N86:N106)","v":0}]
["Subtotal Homelessness Prevention",null,{"$f":"SUM(C20:C22)","v":0}]
[]
["Other Grant Expenditures"]
["Street Outreach",null,{"$f":"SUMIF('Consolidated Support'!D49:D58,\"SOES*\",'Consolidated Support'!N49:N58)","v":0}]
["HMIS",null,{"$f":"SUMIF('Consolidated Support'!D110:D119,\"HMIS*\",'Consolidated Support'!N110:N119)","v":0}]
["Administration"]
[]
["Total ESG Grant Funds",null,{"$f":"+C28+C27+C26+C11+C17+C23","v":0}]
[]
["Match Source"]
["Other Non-ESG HUD funds",null,{"$f":"SUMIF('Consolidated Support'!D123:D127,\"MATCH-Other Non-ESG Funds*\",'Consolidated Support'!K123:K127)","v":0}]
["Other Federal Funds",null,{"$f":"SUMIF('Consolidated Support'!D123:D127,\"MATCH-Other Federal Funds*\",'Consolidated Support'!K123:K127)","v":0}]
["State Government ",null,{"$f":"SUMIF('Consolidated Support'!D123:D127,\"MATCH-State Government*\",'Consolidated Support'!K123:K127)","v":0}]
["Local Government ",null,{"$f":"SUMIF('Consolidated Support'!D123:D127,\"MATCH-Local Government*\",'Consolidated Support'!K123:K127)","v":0}]
["Private Funds",null,{"$f":"SUMIF('Consolidated Support'!D123:D127,\"MATCH-Private Funds*\",'Consolidated Support'!K123:K127)","v":0}]
["Other Volunteer Hours",null,{"$f":"SUMIF('Consolidated Support'!D123:D127,\"MATCH-Other Volunteer Hours*\",'Consolidated Support'!K123:K127)","v":0}]
["Other In-Kind",null,{"$f":"SUMIF('Consolidated Support'!D123:D127,\"MATCH-In-Kind Donations*\",'Consolidated Support'!K123:K127)","v":0}]
["Other-Donated value___________________________________",null,{"$f":"SUMIF('Consolidated Support'!D123:D127,\"MATCH-Other-Donated value*\",'Consolidated Support'!K123:K127)","v":0}]
["Total Match Amount",null,{"$f":"SUM(C33:C40)","v":0}]
[]
["Total ESG Funds Expended",null,{"$f":"+C41+C30","v":0}]

{"sheet":"CAPER FY25 Cum","index":3,"n_rows":43,"n_cols":3,"rows_kept":43,"cut":false,"hidden":false,"merged":[[31,0,31,2],[0,0,0,2],[1,1,1,2],[2,1,2,2],[3,1,3,2],[4,1,4,2],[5,1,5,2],[7,0,7,2],[12,0,12,2],[18,0,18,2],[24,0,24,2]]}
["Cumulative Financial Summary Report (CAPER)"]
["Sub recipient",{"$f":"'Request for Cash'!D6:F6","v":{"$error":"#VALUE!"}}]
["Contract Number",{"$f":"'Request for Cash'!H7","v":{"$error":"#N/A"}}]
["Request for Cash Number",{"$f":"'Consolidated Support'!D5","v":0}]
["Reporting Period From",{"$f":"'Request for Cash'!G10","v":"00:00:00"}]
["                            To",{"$f":"'Request for Cash'!I10","v":"00:00:00"}]
[null,null,"Emergency Solutions Grant Expenditures by Categories   2/6/2026 to 2/5/2027"]
["ESG Expenditures for Emergency Shelter"]
["Essential Services",null,0]
["Operations",null,0]
["Subtotal",null,{"$f":"SUM(C9:C10)","v":0}]
[]
["ESG Expenditures for Rapid Rehousing"]
["Expenditures for Rental Assistance",null,0]
["Expenditures for Housing Relocation and Stabilization Services - Financial Assistance",null,0]
["Expenditures for Housing Relocation and Stabilization Services - Services",null,0]
["Subtotal Rapid Rehousing",null,{"$f":"SUM(C14:C16)","v":0}]
[]
["ESG Expenditures for Homelessness Prevention"]
["Expenditures for Rental Assistance",null,0]
["Expenditures for Housing Relocation and Stabilization Services - Financial Assistance",null,0]
["Expenditures for Housing Relocation and Stabilization Services - Services",null,0]
["Subtotal Homelessness Prevention",null,{"$f":"SUM(C20:C22)","v":0}]
[]
["Other Grant Expenditures"]
["Street Outreach",null,0]
["HMIS",null,0]
["Administration",null,0]
[]
["Total ESG Grant Funds",null,{"$f":"+C28+C27+C26+C11+C17+C23","v":0}]
[]
["Match Source"]
["Other Non-ESG HUD funds",null,0]
["Other Federal Funds",null,0]
["State Government ",null,0]
["Local Government ",null,0]
["Private Funds",null,0]
["Other Volunteer Hours",null,0]
["Other In-Kind",null,0]
["Other Type___________________________________",null,0]
["Total Match Amount",null,{"$f":"SUM(C33:C40)","v":0}]
[]
["Total ESG Funds Expended",null,{"$f":"+C41+C30","v":0}]

{"sheet":"CAPERList","index":4,"n_rows":65,"n_cols":6,"rows_kept":65,"cut":false,"hidden":false,"merged":[]}
[]
["Category","SubCategory1","Category-SubCategory1","SubCategory2",null,"Eligible Items"]
["Emergency Shelter","Essential Services","ESES","ESES-Case management",null,"Case management"]
["Emergency Shelter","Essential Services","ESES","ESES-Transportation",null,"Transportation"]
["Emergency Shelter","Essential Services","ESES","ESES- Indirect Costs",null,"Indirect Cost"]
["Emergency Shelter","Essential Services","ESES","ESES- Child Care",null,"Child Care"]
["Emergency Shelter","Essential Services","ESES","ESES- Education Services",null,"Education Services"]
["Emergency Shelter","Essential Services","ESES","ESES- Employment Assistance & Job Training",null,"Employment Assistance & Job Training"]
["Emergency Shelter","Essential Services","ESES","ESES- Outpatient Health Services",null,"Outpatient Health Services"]
["Emergency Shelter","Essential Services","ESES","ESES- Legal Services",null,"Legal Services"]
["Emergency Shelter","Essential Services","ESES","ESES- Life Skills Training",null,"Life Skills Training"]
["Emergency Shelter","Essential Services","ESES","ESES- Mental Health Services",null,"Mental Health Services"]
["Emergency Shelter","Essential Services","ESES","ESES- Substance Abuse Treatment Services",null,"Substance Abuse Treatment Services"]
["Emergency Shelter","Operations","ESOP","ESOP-Maintenance",null,"Maintenance"]
["Emergency Shelter","Operations","ESOP","ESOP-Rent",null,"Rent"]
["Emergency Shelter","Operations","ESOP","ESOP-Security",null,"Security"]
["Emergency Shelter","Operations","ESOP","ESOP-Fuel",null,"Fuel"]
["Emergency Shelter","Operations","ESOP","ESOP-Equipment",null,"Equipment"]
["Emergency Shelter","Operations","ESOP","ESOP-Insurance/Professional Services",null,"Insurance/Professional Services"]
["Emergency Shelter","Operations","ESOP","ESOP-Utilities",null,"Utilities"]
["Emergency Shelter","Operations","ESOP","ESOP-Food",null,"Food"]
["Emergency Shelter","Operations","ESOP","ESOP-Furnishings",null,"Furnishings"]
["Emergency Shelter","Operations","ESOP","ESOP-Supplies for shelter",null,"Supplies for shelter"]
["Emergency Shelter","Operations","ESOP","ESOP-Hotel/Motel Vouchers",null,"Hotel/Motel Vouchers"]
["Street Outreach","Essential Services","SOES","SOES-Engagement",null,"Cost of locating, identifying and building relationships and engaging with unsheltered homeless people for the purpose of providing assistance."]
["Street Outreach","Essential Services","SOES","SOES-Case Management",null,"Assessing housing & service needs, arranging, coordinating, and monitoring the delivery of individualized services to meet the needs of the program participant."]
["Street Outreach","Essential Services","SOES","SOES- Indirect Costs",null,"Indirect Cost"]
["Street Outreach","Essential Services","SOES","SOES-Emergency Health Services",null,"Direct outpatient treatment of medical conditions provided by licensed medical professionals operating in the community-based settings."]
["Street Outreach","Essential Services","SOES","SOES-Emergency Mental Health Services",null,"Direct outpatient treatment by licensed professionals"]
["Street Outreach","Essential Services","SOES","SOES-Transportation",null,"Cost of travel by outreach workers, social workers, medical professionals or other service providers.  To transport unsheltered people to shelters and other service facilities."]
["Street Outreach","Essential Services","SOES","SOES-Special Population",null,"Homeless youth; victim services and services for people living with HIV/AIDS"]
["Rapid Rehousing","Expenditures for Rental Assistance","RRRA","RRRA-Rental payment",null,"Rental payment"]
["Rapid Rehousing","Expenditures for Rental Assistance","RRRA","RRRA-Rental arrearage payment",null,"Rental arrearage payment"]
["Rapid Rehousing","Expenditures for Housing Relocation and Stabilization Services - Financial Assistance","RRFA","RRFA-Rental application fees",null,"Rental application fees"]
["Rapid Rehousing","Expenditures for Housing Relocation and Stabilization Services - Financial Assistance","RRFA","RRFA-Security deposits",null,"Security deposits"]
["Rapid Rehousing","Expenditures for Housing Relocation and Stabilization Services - Financial Assistance","RRFA","RRFA-Last month rent",null,"Last month rent"]
["Rapid Rehousing","Expenditures for Housing Relocation and Stabilization Services - Financial Assistance","RRFA","RRFA-Utility deposit",null,"Utility deposit"]
["Rapid Rehousing","Expenditures for Housing Relocation and Stabilization Services - Financial Assistance","RRFA","RRFA-Utility payment",null,"Utility payment"]
["Rapid Rehousing","Expenditures for Housing Relocation and Stabilization Services - Financial Assistance","RRFA","RRFA-Moving costs",null,"Moving costs"]
["Rapid Rehousing","Expenditures for Housing Relocation and Stabilization Services - Services","RRSS","RRSS-Housing stability case management",null,"Housing stability case management"]
["Rapid Rehousing","Expenditures for Housing Relocation and Stabilization Services - Services","RRSS","RRSS-Housing search",null,"Housing search"]
["Rapid Rehousing","Expenditures for Housing Relocation and Stabilization Services - Services","RRSS","RRSS-Placement",null,"Placement"]
["Rapid Rehousing","Expenditures for Housing Relocation and Stabilization Services - Services","RRSS","RRSS- Indirect Costs",null,"Indirect Cost"]
["Homeless Prevention","Expenditures for Rental Assistance","HPRA","HPRA-Rental payment",null,"Rental payment"]
["Homeless Prevention","Expenditures for Rental Assistance","HPRA","HPRA-Rental arrearage payment",null,"Rental arrearage payment"]
["Homeless Prevention","Expenditures for Housing Relocation and Stabilization Services - Financial Assistance","HPFA","HPFA-Rental application fees",null,"Rental application fees"]
["Homeless Prevention","Expenditures for Housing Relocation and Stabilization Services - Financial Assistance","HPFA","HPFA-Security Deposit",null,"Security Deposit"]
["Homeless Prevention","Expenditures for Housing Relocation and Stabilization Services - Financial Assistance","HPFA","HPFA-Last month rent",null,"Last month rent"]
["Homeless Prevention","Expenditures for Housing Relocation and Stabilization Services - Financial Assistance","HPFA","HPFA-Utility deposit",null,"Utility deposit"]
["Homeless Prevention","Expenditures for Housing Relocation and Stabilization Services - Financial Assistance","HPFA","HPFA-Utility payment",null,"Utility payment"]
["Homeless Prevention","Expenditures for Housing Relocation and Stabilization Services - Financial Assistance","HPFA","HPFA-Moving Cost",null,"Moving Cost"]
["Homeless Prevention","Expenditures for Housing Relocation and Stabilization Services - Services","HPSS","HPSS-Housing stability case management",null,"Housing stability case management"]
["Homeless Prevention","Expenditures for Housing Relocation and Stabilization Services - Services","HPSS","HPSS-Housing search",null,"Housing search"]
["Homeless Prevention","Expenditures for Housing Relocation and Stabilization Services - Services","HPSS","HPSS-Placement",null,"Placement"]
["Homeless Prevention","Expenditures for Housing Relocation and Stabilization Services - Services","HPSS","HPSS- Indirect Costs",null,"Indirect Cost"]
["HMIS","Homeless Management Information System","HMIS","HMIS-Data support",null,"Data support"]
["HMIS","Homeless Management Information System","HMIS","HMIS-Indirect Costs",null,"Indirect Cost"]
["MATCH","Other Non-ESG HUD funds","MATCH-Other Non-ESG Funds","MATCH-Other Non-ESG Funds",null,"Other Non-ESG Funds"]
["MATCH","Other Federal Funds","MATCH-Other Federal Funds","MATCH-Other Federal Funds",null,"Other Federal Funds"]
["MATCH","State Government","MATCH-State Government","MATCH-State Government",null,"State Government"]
["MATCH","Local Government","MATCH-Local Government","MATCH-Local Government",null,"Local Government"]
["MATCH","Private Funds","MATCH-Private Funds","MATCH-Private Funds",null,"Private Funds"]
["MATCH","Other-Volunteer Hours","MATCH-Other Volunteer Hours","MATCH-Other Volunteer Hours",null,"Other Volunteer Hours"]
["MATCH","Other-In Kind Donations","MATCH-In-Kind Donations","MATCH-In-Kind Donations",null,"Other-In Kind Donations"]
["MATCH","Other-Donated value","MATCH-Other-Donated value","MATCH-Other-Donated value",null,"Other-Donated value"]